bitfinex-derivatives/quotes_SOLF0:USTF0_20250819
["timestamp","ask_amount","ask_price","bid_price","bid_amount"]
[1755574153044,3.11,180.86,180.78,0.66]
[1755574153249,3.11,180.86,180.8,3.074267]
[1755574153450,3.11,180.89,180.81,0.66]
[1755574153645,3.9614446,180.88,180.81,0.66]
[1755574153946,3.11,180.84,180.73,0.66]
[1755574154159,3.11,180.82,180.73,0.66]
[1755574154357,3.96083878,180.81,180.73,0.66]
[1755574154563,3.11,180.82,180.73,0.66]
[1755574154759,3.95750389,180.81,180.73,0.66]
[1755574154959,3.11,180.82,180.73,0.66]
[1755574155263,3.11,180.86,180.75,3.074267]
[1755574155461,3.95604833,180.85,180.76,0.66]
[1755574155764,3.11,180.84,180.76,0.66]
[1755574157261,3.11,180.84,180.74,3.074267]
[1755574157461,3.11,180.82,180.74,3.074267]
[1755574157764,3.11,180.82,180.75,0.66]
[1755574158065,4.28467472,180.81,180.75,0.66]
[1755574158254,3.11,180.82,180.75,0.66]
[1755574158459,4.28438397,180.81,180.75,0.66]
[1755574158765,3.11,180.82,180.75,0.66]
[1755574159658,3.11,180.82,180.76,5.5294]
[1755574159966,3.11,180.87,180.78,3.074267]
[1755574160160,3.11,180.85,180.78,3.074267]
[1755574160364,4.28301463,180.84,180.78,3.074267]
[1755574160664,3.11,180.89,180.8,0.66]
[1755574160864,3.11,180.87,180.8,0.66]
[1755574161067,4.28279078,180.86,180.8,0.66]
[1755574161267,7.39195729,180.85,180.77,0.66]
[1755574161461,4.28195729,180.84,180.77,3.734267]
[1755574161661,3.11,180.85,180.77,3.734267]
[1755574161862,4.28222045,180.84,180.77,3.734267]
[1755574162064,4.28326195,180.83,180.77,3.734267]
[1755574162264,3.11,180.85,180.77,3.734267]
[1755574162462,4.28291098,180.84,180.77,0.66]
[1755574162668,7.26291098,180.83,180.77,0.66]
[1755574162866,2.98,180.83,180.75,3.074267]
[1755574163066,4.28271241,180.82,180.73,3.734267]
[1755574163265,2.98,180.83,180.73,3.734267]
[1755574163571,2.98,180.81,180.73,3.734267]
[1755574163866,2.98,180.81,180.74,0.66]
[1755574164062,2.98,180.86,180.77,0.66]
[1755574164264,4.28202472,180.85,180.77,0.66]
[1755574164569,4.28202472,180.84,180.77,0.66]
[1755574164764,2.98,180.86,180.77,0.66]
[1755574165067,3.074267,180.9,180.77,0.66]
[1755574165068,2.98,180.84,180.77,0.66]
[1755574166772,4.28200454,180.83,180.77,0.66]
[1755574166966,2.98,180.84,180.77,0.66]
[1755574167274,4.28169796,180.83,180.77,0.66]
[1755574167466,2.98,180.84,180.77,0.66]
[1755574167774,4.28169796,180.83,180.77,0.66]
[1755574167964,2.98,180.84,180.77,0.66]
[1755574171366,4.28051211,180.83,180.77,0.66]
[1755574171563,2.98,180.84,180.77,0.66]
[1755574171765,4.28051094,180.83,180.77,0.66]
[1755574171960,2.98,180.81,180.77,0.66]
[1755574173767,3.074267,180.87,180.77,0.66]
[1755574173968,2.98,180.81,180.77,0.66]
[1755574174371,2.98,180.83,180.73,0.66]
[1755574174571,2.98,180.81,180.73,0.66]
[1755574175076,4.2833204,180.8,180.73,0.66]
[1755574175373,2.98,180.81,180.73,0.66]
[1755574175579,2.98,180.79,180.73,0.66]
[1755574177979,2.98,180.8,180.69,0.66]
[1755574178181,2.98,180.78,180.69,0.66]
[1755574178480,2.98,180.78,180.69,6.1915]
[1755574178872,2.98,180.78,180.69,5.5315]
[1755574179080,2.98,180.78,180.7,0.66]
[1755574179279,4.28712726,180.77,180.7,0.66]
[1755574179577,2.98,180.78,180.7,0.66]
[1755574179578,2.98,180.78,180.71,0.66]
[1755574179975,2.98,180.78,180.71,6.1909]
[1755574180178,4.28848836,180.77,180.71,6.1909]
[1755574180373,2.98,180.78,180.71,6.1909]
[1755574180574,2.98,180.78,180.72,5.5307]
[1755574180775,2.98,180.78,180.7,3.074267]
[1755574180776,2.98,180.78,180.73,0.69559745]
[1755574180979,2.98,180.83,180.74,0.66]
[1755574181181,2.98,180.81,180.74,0.66]
[1755574181380,2.98,180.79,180.7,3.734267]
[1755574181581,4.2884947,180.78,180.7,3.734267]
[1755574181776,4.2884947,180.77,180.7,9.265367]
[1755574181971,2.98,180.79,180.7,9.265367]
[1755574182176,4.29013802,180.78,180.71,5.531]
[1755574182382,4.29013802,180.77,180.71,5.531]
[1755574182680,2.98,180.79,180.72,6.1906]
[1755574182881,4.29124408,180.78,180.72,6.1906]
[1755574183083,2.98,180.79,180.72,6.1906]
[1755574183276,4.29219507,180.78,180.72,6.1906]
[1755574183476,2.98,180.79,180.72,6.1906]
[1755574183676,4.29238792,180.78,180.72,6.1906]
[1755574183879,2.98,180.79,180.72,6.1906]
[1755574184079,4.29219915,180.78,180.72,6.1906]
[1755574184278,4.29314314,180.77,180.72,6.1906]
[1755574184483,2.98,180.79,180.73,0.66]
[1755574184679,7.27323601,180.78,180.74,0.66]
[1755574184984,2.98,180.81,180.75,0.66]
[1755574185182,4.29362817,180.8,180.74,0.66]
[1755574185376,4.29362817,180.79,180.75,0.66]
[1755574185577,2.98,180.81,180.75,0.66]
[1755574185883,4.29231481,180.8,180.74,0.66]
[1755574186082,9.04325784,180.88,180.65,372.44302856]
[1755574186083,9.04330792,180.88,180.77,0.66]
[1755574186285,9.04325784,180.91,180.79,8.602667]
[1755574186286,7.27195598,180.87,180.79,8.602667]
[1755574186479,4.29195598,180.86,180.79,3.734267]
[1755574186685,7.27195598,180.85,180.81,0.69753547]
[1755574186881,7.27195598,180.84,180.81,0.69753547]
[1755574187180,2.98,180.84,180.81,0.69753547]
[1755574187380,4.29478427,180.83,180.81,0.03753547]
[1755574187583,6.06330792,180.9,180.81,0.03753547]
[1755574187584,7.27478427,180.82,180.81,0.03753547]
[1755574188183,2.98,180.82,180.81,0.03753547]
[1755574191886,6.8949586,180.82,180.81,0.03753547]
[1755574192685,2.98,180.82,180.81,0.03753547]
[1755574192880,2.93,180.84,180.81,0.03753547]
[1755574193186,2.93,180.83,180.81,0.03753547]
[1755574193382,2.93,180.88,180.78,0.66]
[1755574193690,3.91658257,180.87,180.78,0.66]
[1755574193894,3.91658257,180.86,180.78,6.1888]
[1755574194083,2.93,180.88,180.78,6.1888]
[1755574194284,2.93,180.86,180.74,3.074267]
[1755574194489,2.93,180.84,180.74,3.734267]
[1755574194689,2.93,180.82,180.74,3.734267]
[1755574194892,2.93,180.82,180.74,0.66]
[1755574195089,2.93,180.8,180.71,3.734267]
[1755574197189,3.91601403,180.79,180.71,3.734267]
[1755574197500,2.93,180.8,180.71,0.66]
[1755574197800,3.91590956,180.79,180.71,0.66]
[1755574197999,2.93,180.8,180.71,0.66]
[1755574198194,3.91590415,180.79,180.71,0.66]
[1755574198396,2.93,180.8,180.71,0.66]
[1755574198593,3.91619492,180.79,180.71,0.66]
[1755574198892,2.93,180.8,180.71,0.66]
[1755574199098,3.91619492,180.79,180.71,0.66]
[1755574199298,2.93,180.8,180.71,6.191]
[1755574199598,3.91602739,180.79,180.71,0.66]
[1755574199800,2.93,180.8,180.71,0.66]
[1755574199991,3.91602739,180.79,180.71,0.66]
[1755574200295,2.93,180.8,180.71,0.66]
[1755574200496,2.93,180.78,180.68,0.66]
[1755574200701,6.004267,180.76,180.65,3.734267]
[1755574200999,2.93,180.74,180.65,0.66]
[1755574201398,2.93,180.78,180.68,0.66]
[1755574201598,3.91488156,180.77,180.73,3.074267]
[1755574201799,2.93,180.85,180.76,3.074267]
[1755574202005,2.93,180.83,180.76,3.734267]
[1755574202190,3.91643399,180.82,180.73,3.074267]
[1755574202396,2.93,180.8,180.79,0.03928702]
[1755574202594,6.84643399,180.8,180.73,0.66]
[1755574202792,0.03652875,180.79,180.73,6.1903]
[1755574203005,0.03652875,180.79,180.76,0.7]
[1755574203313,0.03652875,180.79,180.78,0.7]
[1755574203816,0.03652875,180.79,180.78,6.2289]
[1755574204000,0.03652875,180.79,180.78,0.7]
[1755574204909,2.93,180.85,180.78,0.7]
[1755574205310,3.91945411,180.84,180.78,0.7]
[1755574205616,242.84998239,180.92,180.74,0.7]
[1755574205617,2.93,180.82,180.74,0.7]
[1755574205914,3.91899202,180.81,180.74,0.7]
[1755574206115,3.91899202,180.8,180.74,0.7]
[1755574206319,6.84899202,180.79,180.7,0.7]
[1755574206615,6.004267,180.77,180.66,143.614267]
[1755574206914,2.93,180.77,180.69,3.074267]
[1755574207106,3.074267,180.8,180.7,6.2311]
[1755574207307,3.91606702,180.79,180.7,6.2311]
[1755574207507,3.074267,180.8,180.7,6.2311]
[1755574207714,3.074267,180.8,180.71,5.531]
[1755574207910,3.91585684,180.79,180.71,5.531]
[1755574208112,3.074267,180.8,180.71,5.531]
[1755574208305,2.93,180.78,180.7,0.7]
[1755574208807,3.91600383,180.77,180.7,0.7]
[1755574209007,2.93,180.78,180.7,3.774267]
[1755574209210,2.93,180.81,180.71,0.7]
[1755574209508,2.93,180.79,180.71,0.7]
[1755574209708,2.93,180.77,180.67,3.774267]
[1755574210214,2.93,180.75,180.65,0.7]
[1755574210406,3.91674907,180.74,180.65,0.7]
[1755574210607,2.93,180.73,180.64,3.074267]
[1755574211412,2.93,180.71,180.64,3.074267]
[1755574211910,2.93,180.71,180.62,0.7]
[1755574212104,2.93,180.71,180.59,4.7375888]
[1755574212309,2.93,180.69,180.59,1.6633218]
[1755574212613,2.93,180.67,180.57,3.774267]
[1755574213317,2.93,180.66,180.54,3.774267]
[1755574213519,2.93,180.66,180.58,0.7]
[1755574214316,2.93,180.66,180.55,0.9635752]
[1755574214517,2.93,180.66,180.54,3.074267]
[1755574214720,2.93,180.66,180.57,3.074267]
[1755574214922,2.93,180.66,180.58,0.7]
[1755574215323,2.93,180.66,180.59,5.5347]
[1755574215620,2.93,180.7,180.61,0.7]
[1755574217717,2.93,180.7,180.58,0.7]
[1755574217920,3.074267,180.68,180.58,0.7]
[1755574218121,2.93,180.67,180.58,0.7]
[1755574218926,2.93,180.67,180.58,6.2349]
[1755574219318,2.93,180.67,180.59,5.5344]
[1755574219521,6.004267,180.71,180.61,0.7]
[1755574219724,2.93,180.71,180.61,0.7]
[1755574220325,2.93,180.7,180.59,3.074267]
[1755574220526,2.93,180.7,180.6,0.7]
[1755574220727,2.93,180.69,180.6,0.7]
[1755574224932,2.93,180.69,180.61,5.5338]
[1755574225235,2.93,180.69,180.6,0.7]
[1755574226142,2.93,180.69,180.6,6.2343]
[1755574227240,2.93,180.69,180.6,0.7]
[1755574228632,2.93,180.69,180.57,5.5352]
[1755574228840,140.58,180.79,180.56,3.774267]
[1755574228841,2.93,180.67,180.56,3.774267]
[1755574230840,2.93,180.67,180.56,9.309767]
[1755574231744,2.93,180.67,180.57,5.5353]
[1755574232243,2.93,180.67,180.56,6.2355]
[1755574232438,2.93,180.67,180.56,9.309767]
[1755574233035,2.93,180.67,180.57,5.5352]
[1755574234744,2.93,180.67,180.58,6.2349]
[1755574235241,2.93,180.67,180.58,0.7]
[1755574236242,2.93,180.67,180.58,6.2348]
[1755574236439,2.93,180.67,180.58,0.7]
[1755574236635,2.93,180.67,180.59,5.5346]
[1755574236841,2.93,180.67,180.59,6.2346]
[1755574238048,2.93,180.67,180.59,0.7]
[1755574239045,2.93,180.67,180.59,6.2347]
[1755574239445,2.93,180.67,180.6,3.074267]
[1755574239748,2.93,180.7,180.56,0.7]
[1755574240046,2.93,180.68,180.58,5.5349]
[1755574240248,2.93,180.68,180.57,0.7]
[1755574240446,3.074267,180.67,180.57,0.7]
[1755574240646,2.93,180.66,180.57,0.7]
[1755574241546,2.93,180.66,180.6,0.03776115]
[1755574242844,2.93,180.66,180.6,0.73776115]
[1755574243039,124.0,180.76,180.61,0.7]
[1755574243040,2.93,180.69,180.61,0.7]
[1755574245352,2.93,180.69,180.61,6.234]
[1755574245554,2.93,180.69,180.61,0.7]
[1755574245854,2.93,180.69,180.63,0.03562867]
[1755574246258,2.93,180.69,180.58,0.7]
[1755574247558,2.93,180.81,180.67,0.7]
[1755574247759,2.93,180.85,180.75,3.074267]
[1755574247949,2.93,180.85,180.78,8.602867]
[1755574248355,2.93,180.85,180.77,0.7]
[1755574248659,2.93,180.88,180.78,3.774267]
[1755574248863,3.82591559,180.87,180.78,3.774267]
[1755574249163,2.93,180.88,180.78,3.774267]
[1755574249361,2.93,180.88,180.81,0.03700917]
[1755574249964,3.074267,180.87,180.81,0.03700917]
[1755574250260,2.93,180.84,180.81,0.03700917]
[1755574250668,2.93,180.83,180.74,0.7]
[1755574251661,2.93,180.83,180.76,5.5294]
[1755574252170,2.93,180.91,180.76,0.7]
[1755574252362,3.18,180.89,180.76,0.7]
[1755574252663,3.82481256,180.88,180.78,4.85912212]
[1755574252861,3.18,180.89,180.79,0.7]
[1755574253166,3.82352483,180.88,180.79,0.7]
[1755574253368,3.18,180.89,180.8,5.5283]
[1755574254258,3.18,180.89,180.81,4.85912212]
[1755574254460,3.18,180.89,180.81,5.55912212]
[1755574255063,3.18,180.89,180.82,5.5276]
[1755574255970,241.88744661,180.92,180.82,5.5276]
[1755574256168,3.18,180.91,180.81,4.85912212]
[1755574256967,3.18,180.91,180.84,0.04015982]
[1755574259373,122.09519429,180.92,180.85,0.7]
[1755574259568,125.27519429,180.92,180.84,0.04015982]
[1755574263473,122.09519429,180.92,180.85,0.7]
[1755574263667,122.09519429,180.92,180.89,0.7]
[1755574263865,122.09519429,180.92,180.91,0.7]
[1755574264275,139.3,180.99,180.91,0.7]
[1755574264676,3.18,181.0,180.91,0.7]
[1755574266374,3.18,181.0,180.92,4.85912212]
[1755574267076,3.18,181.0,180.91,0.7]
[1755574267381,142.5,181.04,180.91,0.7]
[1755574267571,3.18,181.03,180.91,0.7]
[1755574270281,3.18,181.03,180.93,0.7]
[1755574270885,3.18,181.03,180.94,5.524]
[1755574271287,3.18,181.03,180.95,0.7]
[1755574271487,3.18,181.03,180.95,6.2236]
[1755574271685,3.18,181.03,180.91,0.7]
[1755574272583,3.18,181.03,180.91,4.85912212]
[1755574272789,3.18,181.03,180.92,0.7]
[1755574273792,3.18,181.03,180.94,5.5239]
[1755574274393,3.18,181.03,180.92,0.7]
[1755574277396,3.18,181.03,180.89,0.7]
[1755574277780,3.18,181.01,180.89,0.7]
[1755574278991,3.18,181.01,180.9,5.5252]
[1755574279389,3.18,181.01,180.92,5.5245]
[1755574279694,3.18,181.01,180.93,0.7]
[1755574279889,3.18,181.01,180.93,6.2243]
[1755574280195,3.18,181.05,180.96,0.7]
[1755574280794,3.18,181.05,180.96,6.2233]
[1755574281091,3.18,181.05,180.96,0.7]
[1755574282595,3.18,181.05,180.92,11.07362212]
[1755574283101,3.18,181.05,180.93,0.69]
[1755574285098,3.18,181.05,180.93,6.2141]
[1755574285396,3.18,181.05,180.93,0.69]
[1755574285593,19.76,181.05,180.93,0.69]
[1755574285799,2.9,181.04,180.93,0.69]
[1755574286299,2.9,181.03,180.9,0.69]
[1755574286703,2.9,181.03,180.91,5.5247]
[1755574288189,139.32,181.03,180.91,5.5247]
[1755574288396,2.9,181.02,180.91,5.5247]
[1755574288799,2.9,181.02,180.9,0.69]
[1755574289298,2.9,181.0,180.9,0.69]
[1755574290502,139.32,181.03,180.86,0.69]
[1755574290503,2.9,180.97,180.86,0.69]
[1755574291401,2.9,180.95,180.86,0.69]
[1755574292503,2.9,180.93,180.86,0.69]
[1755574293500,2.9,180.93,180.82,5.5274]
[1755574293706,2.9,180.93,180.82,6.2174]
[1755574294000,2.9,180.93,180.82,0.69]
[1755574294199,2.9,180.91,180.82,0.69]
[1755574294609,2.9,180.89,180.82,0.69]
[1755574296304,2.9,180.94,180.86,0.69]
[1755574296500,8.24121977,180.93,180.86,0.69]
[1755574296700,2.9,180.94,180.86,0.69]
[1755574296904,3.80786716,180.93,180.86,0.69]
[1755574297114,374.22,180.98,180.86,0.69]
[1755574297414,8.24477304,180.97,180.86,0.69]
[1755574297614,374.22,180.98,180.86,0.69]
[1755574297615,2.9,180.95,180.86,0.69]
[1755574298312,3.80891483,180.94,180.86,0.69]
[1755574298606,2.9,180.95,180.87,5.5261]
[1755574298807,371.32,180.98,180.88,0.69]
[1755574299011,8.2463596,180.97,180.88,0.69]
[1755574299211,3.81008434,180.96,180.88,0.69]
[1755574299409,3.81008434,180.95,180.88,0.69]
[1755574299611,371.32,180.98,180.88,0.69]
[1755574299909,11.14782628,180.97,180.88,0.69]
[1755574300108,3.81056681,180.96,180.88,0.69]
[1755574300313,3.81056681,180.95,180.88,0.69]
[1755574300511,2.9,180.97,180.88,0.69]
[1755574300714,3.81170645,180.96,180.88,0.69]
[1755574301012,3.81170645,180.95,180.88,0.69]
[1755574301212,6.71170645,180.94,180.83,0.69]
[1755574301410,3.81247272,180.93,180.83,0.69]
[1755574301613,6.71247272,180.92,180.83,0.69]
[1755574301808,2.9,180.92,180.83,0.69]
[1755574302012,3.81338635,180.91,180.83,0.69]
[1755574302212,2.9,180.92,180.83,0.69]
[1755574302412,3.81501499,180.91,180.83,0.69]
[1755574302716,2.9,180.92,180.83,0.69]
[1755574302915,2.9,180.97,180.83,0.69]
[1755574303215,2.9,180.95,180.86,0.69]
[1755574303517,2.9,180.93,180.83,0.69]
[1755574303719,3.81559086,180.92,180.83,0.69]
[1755574304224,2.9,180.93,180.83,0.69]
[1755574305117,2.9,180.93,180.83,6.2171]
[1755574305508,2.9,180.93,180.83,0.69]
[1755574307120,2.9,180.93,180.85,5.5265]
[1755574307421,2.9,180.93,180.86,0.69]
[1755574308612,2.9,180.93,180.86,6.2163]
[1755574309118,2.9,180.97,180.86,0.69]
[1755574310118,2.9,180.97,180.87,5.526]
[1755574310319,2.9,180.97,180.87,3.07931655]
[1755574311225,2.9,180.97,180.87,8.60541655]
[1755574311919,2.9,180.97,180.87,3.07931655]
[1755574312528,3.15,180.95,180.87,3.07931655]
[1755574314026,371.32,180.98,180.89,5.5254]
[1755574314232,371.32,180.98,180.9,3.75931655]
[1755574315727,3.15,180.99,180.93,3.07931655]
[1755574318230,139.16,181.02,180.94,0.69]
[1755574318729,139.16,181.02,180.94,6.2137]
[1755574318931,139.16,181.02,180.94,0.69]
[1755574319925,6.96803479,181.01,180.91,3.07931655]
[1755574320225,3.81802758,181.0,180.9,0.69]
[1755574320528,139.16,181.02,180.89,3.07931655]
[1755574320529,3.15,180.98,180.89,3.07931655]
[1755574320728,3.15,180.98,180.9,0.69]
[1755574322135,3.15,180.98,180.87,3.07931655]
[1755574322632,3.15,180.95,180.83,3.76931655]
[1755574324131,3.15,180.95,180.84,5.527]
[1755574324531,3.15,180.95,180.85,0.69]
[1755574325043,3.15,180.95,180.85,6.2166]
[1755574325738,3.15,180.95,180.85,0.69]
[1755574326231,3.15,180.93,180.85,0.69]
[1755574327136,3.15,180.93,180.81,4.85391203]
[1755574327439,3.15,180.93,180.81,5.54391203]
[1755574327831,3.81942548,180.92,180.81,0.69]
[1755574328034,6.96943925,180.91,180.81,0.69]
[1755574328344,3.15,180.91,180.81,0.69]
[1755574328548,3.15,180.91,180.81,6.2179]
[1755574329739,3.15,180.91,180.82,5.5276]
[1755574330041,3.15,180.91,180.81,0.69]
[1755574330240,3.15,180.91,180.81,6.2179]
[1755574332040,3.15,180.91,180.82,0.69]
[1755574332643,3.15,180.91,180.82,6.2176]
[1755574335741,3.15,180.91,180.83,5.5273]
[1755574336242,3.15,180.91,180.84,0.69]
[1755574336438,3.15,180.91,180.84,6.2168]
[1755574336746,3.15,180.94,180.84,0.69]
[1755574337143,3.15,180.94,180.85,0.69]
[1755574337743,3.15,180.94,180.8,4.85391203]
[1755574337947,138.94,180.97,180.82,0.69]
[1755574337948,3.15,180.92,180.82,0.69]
[1755574338342,3.15,180.92,180.82,6.2175]
[1755574338645,3.15,180.92,180.82,0.69]
[1755574339543,3.15,180.9,180.82,0.69]
[1755574340650,3.85862082,180.89,180.79,0.69]
[1755574340851,7.00849721,180.88,180.76,0.69]
[1755574341043,3.15,180.86,180.76,6.2193]
[1755574341948,3.15,180.86,180.77,5.5291]
[1755574343749,3.15,180.86,180.76,0.69]
[1755574344556,3.15,180.86,180.79,6.2286]
[1755574345255,3.15,180.86,180.79,0.7]
[1755574345547,3.85223758,180.85,180.7,0.7]
[1755574345750,3.04,180.82,180.7,0.7]
[1755574346054,3.04,180.82,180.72,5.5307]
[1755574346355,3.04,180.82,180.7,0.7]
[1755574346356,3.08534459,180.81,180.7,6.2312]
[1755574346546,3.04,180.8,180.7,6.2312]
[1755574347054,3.04,180.8,180.71,0.7]
[1755574348156,6.12534459,180.8,180.71,0.7]
[1755574348358,3.04,180.8,180.71,0.7]
[1755574352250,3.04,180.8,180.66,0.7]
[1755574352451,3.04,180.8,180.68,5.5319]
[1755574352751,3.04,180.8,180.66,0.7]
[1755574352960,7.90224464,180.8,180.66,0.7]
[1755574353158,3.04,180.79,180.66,0.7]
[1755574353462,3.04,180.79,180.66,6.2325]
[1755574353660,3.04,180.79,180.66,0.7]
[1755574354257,3.04,180.76,180.66,0.7]
[1755574354659,3.04,180.76,180.62,0.7]
[1755574355661,4.86224464,180.74,180.62,0.7]
[1755574356061,3.04,180.73,180.62,0.7]
[1755574360254,3.04,180.73,180.66,0.03618951]
[1755574367670,3.04,180.73,180.66,0.73618951]
[1755574368064,3.04,180.73,180.66,0.03618951]
[1755574368368,6.12961838,180.69,180.66,0.03618951]
[1755574368766,3.04,180.69,180.63,0.7]
[1755574368969,3.08961838,180.72,180.63,0.7]
[1755574369168,3.04,180.68,180.51,0.7]
[1755574369375,3.04,180.68,180.5,11.0749]
[1755574369376,3.04,180.68,180.56,0.7]
[1755574370377,3.04,180.68,180.57,0.7]
[1755574370574,3.08961838,180.66,180.57,0.7]
[1755574370772,3.04,180.68,180.59,5.5345]
[1755574371076,3.04,180.68,180.6,0.7]
[1755574372173,3.08961838,180.71,180.6,0.7]
[1755574372376,6.02961838,180.72,180.6,0.7]
[1755574372777,6.02961838,180.72,180.62,0.7]
[1755574374179,2.94,180.68,180.62,0.7]
[1755574374978,2.94,180.68,180.59,0.7]
[1755574375375,3.08961838,180.66,180.59,0.7]
[1755574375566,6.02961838,180.66,180.59,0.7]
[1755574377475,5.5344,180.6,180.59,0.7]
[1755574377676,2.94,180.66,180.59,0.7]
[1755574378475,5.5343,180.61,180.6,0.7]
[1755574380576,5.5343,180.61,180.49,223.67925717]
[1755574380577,2.94,180.66,180.61,0.7]
[1755574380771,2.94,180.7,180.59,0.7]
[1755574381185,5.5343,180.61,180.58,3.08961838]
[1755574381390,5.5343,180.61,180.6,0.7]
[1755574381679,5.5338,180.62,180.58,3.08961838]
[1755574381883,5.5338,180.62,180.61,0.7]
[1755574382586,5.5345,180.6,180.58,3.08961838]
[1755574382886,2.94,180.66,180.59,0.7]
[1755574383087,16.58,180.74,180.56,3.08961838]
[1755574383290,2.94,180.71,180.62,3.08961838]
[1755574383488,2.94,180.71,180.63,0.7]
[1755574384189,6.02961838,180.71,180.59,0.7]
[1755574384391,5.5334,180.64,180.6,0.7]
[1755574384689,2.94,180.67,180.61,0.7]
[1755574385494,2.94,180.67,180.57,0.7]
[1755574385687,2.94,180.67,180.57,6.2351]
[1755574385986,2.94,180.66,180.62,0.0371857]
[1755574386393,2.94,180.65,180.62,0.0371857]
[1755574387392,2.94,180.72,180.62,0.0371857]
[1755574387604,2.94,180.7,180.62,0.0371857]
[1755574387793,2.94,180.7,180.62,0.7]
[1755574388096,3.08961838,180.7,180.59,3.08961838]
[1755574388292,3.83281525,180.69,180.58,0.7]
[1755574388495,6.77281525,180.68,180.58,0.7]
[1755574388695,2.94,180.66,180.58,0.7]
[1755574389296,3.83867163,180.65,180.55,0.7]
[1755574389497,2.94,180.64,180.55,0.7]
[1755574389893,2.94,180.64,180.56,3.08961838]
[1755574390196,2.94,180.64,180.57,0.7]
[1755574390595,2.94,180.67,180.57,6.2353]
[1755574390791,2.94,180.67,180.58,3.08961838]
[1755574391098,2.94,180.71,180.62,0.7]
[1755574391295,3.84583116,180.7,180.62,0.7]
[1755574391601,3.84583116,180.69,180.62,0.7]
[1755574391900,2.94,180.71,180.62,0.7]
[1755574392198,2.94,180.75,180.66,5.5323]
[1755574392502,2.94,180.75,180.65,0.7]
[1755574392503,3.84838354,180.74,180.65,0.7]
[1755574392697,3.84838354,180.73,180.65,0.7]
[1755574392890,6.78912499,180.72,180.65,0.7]
[1755574393097,3.84912499,180.71,180.61,0.7]
[1755574393302,3.84912499,180.7,180.61,0.7]
[1755574393602,3.84912499,180.69,180.61,6.2341]
[1755574393804,2.94,180.72,180.61,6.2341]
[1755574394002,3.85095069,180.71,180.61,6.2341]
[1755574394199,2.94,180.69,180.61,0.7]
[1755574394396,3.85095069,180.68,180.57,0.7]
[1755574394595,3.85095069,180.67,180.57,0.7]
[1755574394900,2.94,180.69,180.58,5.535]
[1755574395100,3.85175423,180.68,180.58,5.535]
[1755574395304,3.85175423,180.67,180.58,5.535]
[1755574395496,2.94,180.69,180.58,5.535]
[1755574395697,3.85233711,180.68,180.58,5.535]
[1755574395899,2.94,180.66,180.58,5.535]